[Event "Early-Titled-Tuesday-Blitz-July-09-2024"]
[Site "Chess.com"]
[Date "2024.07.09"]
[Round "4"]
[White "Pitomina"]
[Black "mapleaff"]
[Result "1-0"]
[WhiteElo "2576"]
[BlackElo "2345"]
[TimeControl "180+1"]
[EndTime "8:38:21 PDT"]
[Termination "Pitomina won on time"]

1. d4 {[%clk 0:03:00]} 1... Nf6 {[%clk 0:02:58.6]} 2. Bf4 {[%clk 0:02:59]} 2...
c5 {[%clk 0:02:47.2]} 3. e3 {[%clk 0:02:57.5]} 3... Nd5 {[%clk 0:02:46.2]} 4.
Bg3 {[%clk 0:02:55.2]} 4... Qb6 {[%clk 0:02:45.3]} 5. Nc3 {[%clk 0:02:54.6]}
5... cxd4 {[%clk 0:02:26.7]} 6. Qxd4 {[%clk 0:02:42.2]} 6... Qxd4 {[%clk
0:02:14.2]} 7. exd4 {[%clk 0:02:43.1]} 7... Nxc3 {[%clk 0:02:15]} 8. bxc3 {[%clk
0:02:44]} 8... d6 {[%clk 0:02:02.9]} 9. Rb1 {[%clk 0:02:43.4]} 9... g6 {[%clk
0:01:58]} 10. Bb5+ {[%clk 0:02:38.1]} 10... Kd8 {[%clk 0:01:55.8]} 11. Ne2
{[%clk 0:02:32.5]} 11... h5 {[%clk 0:01:51.8]} 12. h4 {[%clk 0:02:31.7]} 12...
Bh6 {[%clk 0:01:50.8]} 13. Bc4 {[%clk 0:02:27.9]} 13... Rf8 {[%clk 0:01:42.2]}
14. Nf4 {[%clk 0:02:27.1]} 14... Nc6 {[%clk 0:01:36.1]} 15. O-O {[%clk
0:02:21.2]} 15... Na5 {[%clk 0:01:25.9]} 16. Bd3 {[%clk 0:02:20.1]} 16... Bxf4
{[%clk 0:01:18]} 17. Bxf4 {[%clk 0:02:19.7]} 17... Be6 {[%clk 0:01:18.6]} 18.
Rfe1 {[%clk 0:02:16.6]} 18... Rg8 {[%clk 0:01:11.2]} 19. Bg5 {[%clk 0:02:13.8]}
19... d5 {[%clk 0:00:55.2]} 20. c4 {[%clk 0:02:06.7]} 20... dxc4 {[%clk
0:00:43.8]} 21. Be4 {[%clk 0:02:03.8]} 21... f6 {[%clk 0:00:30.7]} 22. Bd2
{[%clk 0:02:02.6]} 22... Nc6 {[%clk 0:00:28.4]} 23. d5 {[%clk 0:02:02]} 23... f5
{[%clk 0:00:28.3]} 24. dxc6 {[%clk 0:01:59.4]} 24... fxe4 {[%clk 0:00:27.7]} 25.
cxb7 {[%clk 0:02:00.3]} 25... Rb8 {[%clk 0:00:26.5]} 26. Bf4 {[%clk 0:02:00.7]}
26... Kd7 {[%clk 0:00:25.2]} 27. Rxe4 {[%clk 0:02:00.5]} 27... Bd5 {[%clk
0:00:19.6]} 28. Bxb8 {[%clk 0:01:56.4]} 28... Rxb8 {[%clk 0:00:16.8]} 29. Rd4
{[%clk 0:01:54.8]} 29... Kc6 {[%clk 0:00:15.1]} 30. g4 {[%clk 0:01:48]} 30... e6
{[%clk 0:00:12]} 31. Kh2 {[%clk 0:01:45.1]} 31... Kc5 {[%clk 0:00:08.1]} 32. Rf4
{[%clk 0:01:44.3]} 32... Rxb7 {[%clk 0:00:03.6]} 33. Rxb7 {[%clk 0:01:43.8]}
33... Bxb7 {[%clk 0:00:04.5]} 34. Rf6 {[%clk 0:01:44.1]} 34... hxg4 {[%clk
0:00:03.2]} 35. Rxe6 {[%clk 0:01:42.5]} 35... Bd5 {[%clk 0:00:01.6]} 36. Rxg6
{[%clk 0:01:41.9]} 1-0

[Event "Early-Titled-Tuesday-Blitz-July-09-2024"]
[Site "Chess.com"]
[Date "2024.07.09"]
[Round "4"]
[White "oykuince"]
[Black "AndresDelgado77"]
[Result "1-0"]
[WhiteElo "2118"]
[BlackElo "2323"]
[TimeControl "180+1"]
[EndTime "8:38:24 PDT"]
[Termination "oykuince won on time"]

1. d4 {[%clk 0:03:00.9]} 1... Nf6 {[%clk 0:01:41.9]} 2. c4 {[%clk 0:02:59.7]}
2... g6 {[%clk 0:01:20.3]} 3. Nc3 {[%clk 0:02:57.6]} 3... Bg7 {[%clk 0:01:12.6]}
4. e4 {[%clk 0:02:56.5]} 4... O-O {[%clk 0:01:12.2]} 5. h3 {[%clk 0:02:56.3]}
5... c5 {[%clk 0:01:09.2]} 6. d5 {[%clk 0:02:55.4]} 6... d6 {[%clk 0:01:08]} 7.
g4 {[%clk 0:02:55.7]} 7... e6 {[%clk 0:00:56.8]} 8. Nge2 {[%clk 0:02:52.8]} 8...
exd5 {[%clk 0:00:54.8]} 9. cxd5 {[%clk 0:02:53.7]} 9... Re8 {[%clk 0:00:51.4]}
10. Ng3 {[%clk 0:02:54.2]} 10... Qa5 {[%clk 0:00:29]} 11. Bd2 {[%clk 0:02:53.1]}
11... Qb4 {[%clk 0:00:26.7]} 12. Bd3 {[%clk 0:02:51.2]} 12... a6 {[%clk
0:00:23]} 13. Qc2 {[%clk 0:02:40.7]} 13... c4 {[%clk 0:00:20]} 14. Be2 {[%clk
0:02:39.7]} 14... Qc5 {[%clk 0:00:18.8]} 15. Be3 {[%clk 0:02:38.7]} 15... Qc7
{[%clk 0:00:18.4]} 16. g5 {[%clk 0:02:35.3]} 16... Nfd7 {[%clk 0:00:17.7]} 17.
h4 {[%clk 0:02:35.4]} 17... b5 {[%clk 0:00:17]} 18. a3 {[%clk 0:02:32.1]} 18...
Nc5 {[%clk 0:00:16]} 19. h5 {[%clk 0:02:31.4]} 19... Nbd7 {[%clk 0:00:15.3]} 20.
O-O-O {[%clk 0:02:25.1]} 20... Ne5 {[%clk 0:00:14.9]} 21. f4 {[%clk 0:02:19.3]}
21... Ned3+ {[%clk 0:00:14.2]} 22. Kb1 {[%clk 0:02:17.9]} 22... Rb8 {[%clk
0:00:10.5]} 23. Bxd3 {[%clk 0:02:17.9]} 23... cxd3 {[%clk 0:00:09.9]} 24. Qh2
{[%clk 0:02:16.8]} 24... Bxc3 {[%clk 0:00:09.2]} 25. hxg6 {[%clk 0:02:15.5]}
25... fxg6 {[%clk 0:00:08.4]} 26. bxc3 {[%clk 0:02:13]} 26... Na4 {[%clk
0:00:08.7]} 27. Bd4 {[%clk 0:02:12.9]} 27... Nxc3+ {[%clk 0:00:08.5]} 28. Bxc3
{[%clk 0:02:13]} 28... Qxc3 {[%clk 0:00:08.4]} 29. Qxh7+ {[%clk 0:02:13.6]}
29... Kf8 {[%clk 0:00:07.6]} 30. Qh8+ {[%clk 0:01:55.6]} 30... Qxh8 {[%clk
0:00:07.2]} 31. Rxh8+ {[%clk 0:01:56.3]} 31... Kf7 {[%clk 0:00:08.1]} 32. Rh7+
{[%clk 0:01:55.2]} 32... Kg8 {[%clk 0:00:06.5]} 33. Rdh1 {[%clk 0:01:53.7]}
33... Rf8 {[%clk 0:00:01.7]} 34. Rh8+ {[%clk 0:01:43.8]} 34... Kf7 {[%clk
0:00:01.2]} 35. R1h7+ {[%clk 0:01:44.7]} 35... Ke8 {[%clk 0:00:01.4]} 36. Rxf8+
{[%clk 0:01:45.6]} 36... Kxf8 {[%clk 0:00:01.8]} 37. Rc7 {[%clk 0:01:45.8]}
37... Bg4 {[%clk 0:00:02]} 38. Kc1 {[%clk 0:01:43.7]} 1-0

[Event "Early-Titled-Tuesday-Blitz-July-09-2024"]
[Site "Chess.com"]
[Date "2024.07.09"]
[Round "4"]
[White "chessbaerchen"]
[Black "ilovejokes555"]
[Result "1-0"]
[WhiteElo "2652"]
[BlackElo "2332"]
[TimeControl "180+1"]
[EndTime "8:38:25 PDT"]
[Termination "chessbaerchen won by resignation"]

1. e4 {[%clk 0:03:00.9]} 1... c5 {[%clk 0:02:59.5]} 2. Nf3 {[%clk 0:03:00.7]}
2... d6 {[%clk 0:02:59.3]} 3. d4 {[%clk 0:02:58]} 3... cxd4 {[%clk 0:02:59.2]}
4. Nxd4 {[%clk 0:02:58.9]} 4... Nf6 {[%clk 0:02:59.3]} 5. Nc3 {[%clk 0:02:59.4]}
5... a6 {[%clk 0:02:59.2]} 6. f3 {[%clk 0:02:59.7]} 6... e5 {[%clk 0:02:56.6]}
7. Nb3 {[%clk 0:02:59.5]} 7... Be6 {[%clk 0:02:56.4]} 8. Be3 {[%clk 0:02:59.1]}
8... Be7 {[%clk 0:02:56.5]} 9. Qd2 {[%clk 0:02:58.3]} 9... Nbd7 {[%clk
0:02:56.9]} 10. g4 {[%clk 0:02:57.9]} 10... Rc8 {[%clk 0:02:50.4]} 11. O-O-O
{[%clk 0:02:52.2]} 11... b5 {[%clk 0:02:47.2]} 12. g5 {[%clk 0:02:49.7]} 12...
b4 {[%clk 0:02:42.8]} 13. Na4 {[%clk 0:02:36.8]} 13... Nh5 {[%clk 0:02:40.2]}
14. Bxa6 {[%clk 0:02:36.2]} 14... Ra8 {[%clk 0:02:34.7]} 15. Bb5 {[%clk
0:02:35.6]} 15... O-O {[%clk 0:02:30.3]} 16. Kb1 {[%clk 0:02:28.2]} 16... Qb8
{[%clk 0:02:26]} 17. Bxd7 {[%clk 0:02:22.4]} 17... Bxd7 {[%clk 0:02:21.6]} 18.
Nb6 {[%clk 0:02:22.9]} 18... Ra7 {[%clk 0:02:10.8]} 19. Nd5 {[%clk 0:02:22.8]}
19... Bd8 {[%clk 0:01:58.5]} 20. Bxa7 {[%clk 0:02:21.4]} 20... Qxa7 {[%clk
0:01:58.3]} 21. Nxb4 {[%clk 0:02:21.6]} 21... Nf4 {[%clk 0:01:56.7]} 22. h4
{[%clk 0:02:20.8]} 22... Be7 {[%clk 0:01:50.8]} 23. Nd5 {[%clk 0:02:17.8]} 23...
Nxd5 {[%clk 0:01:50.3]} 24. Qxd5 {[%clk 0:02:16.6]} 24... Be6 {[%clk 0:01:50.1]}
25. Qd3 {[%clk 0:02:12.4]} 25... Rc8 {[%clk 0:01:48.2]} 26. a3 {[%clk
0:02:03.7]} 26... Bc4 {[%clk 0:01:40.6]} 27. Qc3 {[%clk 0:02:02]} 27... Qf2
{[%clk 0:01:35.4]} 28. Nd2 {[%clk 0:01:52.7]} 28... Be6 {[%clk 0:01:33.3]} 29.
Qd3 {[%clk 0:01:50.7]} 29... Rb8 {[%clk 0:01:24]} 30. Rdf1 {[%clk 0:01:44.2]}
30... Qc5 {[%clk 0:01:22.8]} 31. c4 {[%clk 0:01:38.7]} 31... Bd8 {[%clk
0:01:18.3]} 32. Rc1 {[%clk 0:01:35.2]} 32... Ba5 {[%clk 0:01:11.9]} 33. Nb3
{[%clk 0:01:24.4]} 33... Qf2 {[%clk 0:01:01.6]} 34. Rc2 {[%clk 0:01:19.9]} 34...
Qb6 {[%clk 0:00:58]} 35. Nxa5 {[%clk 0:01:18.9]} 35... Qxa5 {[%clk 0:00:58.1]}
36. Qxd6 {[%clk 0:01:10.1]} 36... Rd8 {[%clk 0:00:54.3]} 37. Qb4 {[%clk
0:01:10]} 37... Qc7 {[%clk 0:00:52.5]} 38. Rd2 {[%clk 0:01:05.6]} 38... Rb8
{[%clk 0:00:51.4]} 39. Qd6 {[%clk 0:00:56.6]} 39... Qb7 {[%clk 0:00:50.5]} 40.
Qd8+ {[%clk 0:00:55.8]} 1-0

[Event "Early-Titled-Tuesday-Blitz-July-09-2024"]
[Site "Chess.com"]
[Date "2024.07.09"]
[Round "4"]
[White "Sofia_Blokhin"]
[Black "Pachonpower"]
[Result "0-1"]
[WhiteElo "2191"]
[BlackElo "2459"]
[TimeControl "180+1"]
[EndTime "8:38:25 PDT"]
[Termination "Pachonpower won on time"]

1. d4 {[%clk 0:03:00.9]} 1... e6 {[%clk 0:02:24.2]} 2. c4 {[%clk 0:03:00]} 2...
f5 {[%clk 0:02:20.5]} 3. Nc3 {[%clk 0:02:58.8]} 3... Bb4 {[%clk 0:02:20]} 4. g3
{[%clk 0:02:56]} 4... Nf6 {[%clk 0:02:19.9]} 5. Bg2 {[%clk 0:02:55.7]} 5... c6
{[%clk 0:02:20.2]} 6. Nh3 {[%clk 0:02:53.7]} 6... O-O {[%clk 0:02:20.2]} 7. O-O
{[%clk 0:02:52.7]} 7... Qe8 {[%clk 0:02:20]} 8. Nf4 {[%clk 0:02:46.3]} 8... d5
{[%clk 0:02:17.7]} 9. a3 {[%clk 0:02:33.1]} 9... Bxc3 {[%clk 0:02:16.9]} 10.
bxc3 {[%clk 0:02:33.4]} 10... Ne4 {[%clk 0:02:17.5]} 11. cxd5 {[%clk 0:02:30.1]}
11... exd5 {[%clk 0:02:18.4]} 12. Qc2 {[%clk 0:02:25.7]} 12... Nd7 {[%clk
0:02:17.9]} 13. Nd3 {[%clk 0:02:24.6]} 13... Nb6 {[%clk 0:02:15.8]} 14. f3
{[%clk 0:02:24.2]} 14... Nd6 {[%clk 0:02:15.1]} 15. Ne5 {[%clk 0:02:22]} 15...
Nbc4 {[%clk 0:02:13.8]} 16. Bf4 {[%clk 0:02:09.8]} 16... Nxe5 {[%clk 0:02:13.4]}
17. Bxe5 {[%clk 0:02:07.9]} 17... Nc4 {[%clk 0:02:14.1]} 18. Bf4 {[%clk
0:01:49.8]} 18... h6 {[%clk 0:02:13.3]} 19. e4 {[%clk 0:01:46.8]} 19... g5
{[%clk 0:02:10.8]} 20. Bc1 {[%clk 0:01:39.8]} 20... Be6 {[%clk 0:02:10.6]} 21.
e5 {[%clk 0:01:35.5]} 21... f4 {[%clk 0:02:04.7]} 22. g4 {[%clk 0:01:34.6]}
22... Bf7 {[%clk 0:02:03.5]} 23. Re1 {[%clk 0:01:24.8]} 23... Bg6 {[%clk
0:02:01.7]} 24. Qd1 {[%clk 0:01:24.8]} 24... a5 {[%clk 0:01:58.8]} 25. Bf1
{[%clk 0:01:24.7]} 25... a4 {[%clk 0:01:54.8]} 26. Bd3 {[%clk 0:01:20.9]} 26...
b5 {[%clk 0:01:54.6]} 27. Qc2 {[%clk 0:01:19.1]} 27... Bxd3 {[%clk 0:01:52.1]}
28. Qxd3 {[%clk 0:01:19]} 28... Qe6 {[%clk 0:01:52.3]} 29. h4 {[%clk 0:01:15.8]}
29... gxh4 {[%clk 0:01:50.2]} 30. Kh2 {[%clk 0:01:10.8]} 30... Ra7 {[%clk
0:01:49]} 31. Rh1 {[%clk 0:01:04.6]} 31... Rg7 {[%clk 0:01:49.1]} 32. Kg2 {[%clk
0:00:58.7]} 32... h5 {[%clk 0:01:49.3]} 33. Rxh4 {[%clk 0:00:50.6]} 33... hxg4
{[%clk 0:01:49]} 34. fxg4 {[%clk 0:00:26.7]} 34... Rxg4+ {[%clk 0:01:48]} 35.
Rxg4+ {[%clk 0:00:26.8]} 35... Qxg4+ {[%clk 0:01:48.9]} 36. Kf2 {[%clk
0:00:25.8]} 36... f3 {[%clk 0:01:46]} 37. Qf1 {[%clk 0:00:13.8]} 37... Qh4+
{[%clk 0:01:41.5]} 38. Kg1 {[%clk 0:00:11.1]} 38... Qg3+ {[%clk 0:01:41.7]} 39.
Kh1 {[%clk 0:00:10.1]} 39... Rf7 {[%clk 0:01:42.2]} 40. Bh6 {[%clk 0:00:01.2]}
40... Rh7 {[%clk 0:01:42.1]} 0-1

[Event "Early-Titled-Tuesday-Blitz-July-09-2024"]
[Site "Chess.com"]
[Date "2024.07.09"]
[Round "4"]
[White "Beca95"]
[Black "Alex_Sahakyan2006"]
[Result "1-0"]
[WhiteElo "2991"]
[BlackElo "2744"]
[TimeControl "180+1"]
[EndTime "8:38:30 PDT"]
[Termination "Beca95 won by resignation"]

1. Nf3 {[%clk 0:02:59.4]} 1... Nf6 {[%clk 0:02:58.6]} 2. c4 {[%clk 0:02:59.7]}
2... g6 {[%clk 0:02:58.7]} 3. Nc3 {[%clk 0:03:00]} 3... Bg7 {[%clk 0:02:58.9]}
4. e4 {[%clk 0:03:00.5]} 4... e5 {[%clk 0:02:58.4]} 5. Nxe5 {[%clk 0:02:54.6]}
5... O-O {[%clk 0:02:57.9]} 6. d3 {[%clk 0:02:48.5]} 6... Re8 {[%clk 0:02:57.5]}
7. Nf3 {[%clk 0:02:48.4]} 7... d5 {[%clk 0:02:57.4]} 8. cxd5 {[%clk 0:02:42.5]}
8... Nxd5 {[%clk 0:02:57.5]} 9. Bd2 {[%clk 0:02:42.3]} 9... Nb4 {[%clk
0:02:33.3]} 10. Be3 {[%clk 0:02:41.4]} 10... Bg4 {[%clk 0:02:22.8]} 11. a3
{[%clk 0:02:24]} 11... Bxf3 {[%clk 0:02:18.5]} 12. gxf3 {[%clk 0:02:23.7]} 12...
N4c6 {[%clk 0:02:18.9]} 13. h4 {[%clk 0:01:56.9]} 13... Nd4 {[%clk 0:02:13.3]}
14. h5 {[%clk 0:01:56.8]} 14... Nbc6 {[%clk 0:02:11.4]} 15. Rc1 {[%clk 0:01:56]}
15... Ne5 {[%clk 0:01:48.3]} 16. Rh3 {[%clk 0:01:55]} 16... Qd7 {[%clk
0:01:37.9]} 17. f4 {[%clk 0:01:50.2]} 17... Ng4 {[%clk 0:01:33.3]} 18. hxg6
{[%clk 0:01:50]} 18... hxg6 {[%clk 0:01:32.4]} 19. Rg3 {[%clk 0:01:39.2]} 19...
f5 {[%clk 0:01:19.3]} 20. Bh3 {[%clk 0:01:30]} 20... Nxe3 {[%clk 0:00:28.9]} 21.
fxe3 {[%clk 0:01:29]} 21... Ne6 {[%clk 0:00:26.7]} 22. Rxg6 {[%clk 0:01:23.3]}
22... Nc5 {[%clk 0:00:16.1]} 23. Ke2 {[%clk 0:01:23]} 23... Qf7 {[%clk
0:00:11.7]} 24. Bxf5 {[%clk 0:01:22.2]} 24... Rad8 {[%clk 0:00:10.7]} 25. d4
{[%clk 0:01:22.1]} 25... Nxe4 {[%clk 0:00:10.3]} 26. Bxe4 {[%clk 0:01:22]} 26...
Rxe4 {[%clk 0:00:10.1]} 27. Rxg7+ {[%clk 0:01:22.7]} 27... Qxg7 {[%clk 0:00:11]}
28. Nxe4 {[%clk 0:01:22.7]} 28... Re8 {[%clk 0:00:08]} 29. Kd3 {[%clk
0:01:20.2]} 29... Qh7 {[%clk 0:00:05.9]} 30. Qh1 {[%clk 0:01:19.4]} 30... Kf8
{[%clk 0:00:06.6]} 1-0

[Event "Early-Titled-Tuesday-Blitz-July-09-2024"]
[Site "Chess.com"]
[Date "2024.07.09"]
[Round "4"]
[White "arenal72"]
[Black "ChessFighter_2011"]
[Result "0-1"]
[WhiteElo "2712"]
[BlackElo "2951"]
[TimeControl "180+1"]
[EndTime "8:38:38 PDT"]
[Termination "ChessFighter_2011 won by resignation"]

1. Nf3 {[%clk 0:03:00.9]} 1... Nf6 {[%clk 0:02:58.8]} 2. g3 {[%clk 0:02:58.9]}
2... g6 {[%clk 0:02:58.3]} 3. Bg2 {[%clk 0:02:59.4]} 3... Bg7 {[%clk 0:02:57.6]}
4. O-O {[%clk 0:02:59.7]} 4... O-O {[%clk 0:02:58.1]} 5. d3 {[%clk 0:03:00]}
5... b6 {[%clk 0:02:53.8]} 6. e4 {[%clk 0:02:58.4]} 6... Bb7 {[%clk 0:02:53.7]}
7. c4 {[%clk 0:02:59]} 7... d6 {[%clk 0:02:51.1]} 8. Nc3 {[%clk 0:02:58.6]} 8...
Nbd7 {[%clk 0:02:47.9]} 9. Be3 {[%clk 0:02:55.4]} 9... a6 {[%clk 0:02:46]} 10.
h3 {[%clk 0:02:54.1]} 10... e6 {[%clk 0:02:34.9]} 11. d4 {[%clk 0:02:50.4]}
11... Nxe4 {[%clk 0:02:30.8]} 12. Nxe4 {[%clk 0:02:40.4]} 12... Bxe4 {[%clk
0:02:31.7]} 13. a4 {[%clk 0:02:40.2]} 13... a5 {[%clk 0:02:31.5]} 14. Rc1 {[%clk
0:02:38.7]} 14... Rb8 {[%clk 0:02:26.5]} 15. Re1 {[%clk 0:02:37.2]} 15... Bb7
{[%clk 0:02:20.8]} 16. Qd2 {[%clk 0:02:36]} 16... Nf6 {[%clk 0:02:20.1]} 17. Bg5
{[%clk 0:02:34.5]} 17... Qd7 {[%clk 0:02:17.1]} 18. Qf4 {[%clk 0:02:33.6]} 18...
Nh5 {[%clk 0:02:06.2]} 19. Qh4 {[%clk 0:02:33]} 19... f5 {[%clk 0:01:59.2]} 20.
d5 {[%clk 0:02:08.1]} 20... e5 {[%clk 0:01:53.1]} 21. g4 {[%clk 0:01:59.1]}
21... fxg4 {[%clk 0:01:49.2]} 22. hxg4 {[%clk 0:01:59.2]} 22... Nf4 {[%clk
0:01:44.6]} 23. Rc3 {[%clk 0:01:51.2]} 23... Rbe8 {[%clk 0:01:29.8]} 24. Re4
{[%clk 0:01:39.7]} 24... Qxa4 {[%clk 0:00:56.4]} 25. Bh6 {[%clk 0:01:26.6]}
25... Qd7 {[%clk 0:00:50.4]} 26. Ng5 {[%clk 0:01:21.8]} 26... Bxh6 {[%clk
0:00:50.1]} 27. Qxh6 {[%clk 0:01:20.9]} 27... Qg7 {[%clk 0:00:50.1]} 28. Qh4
{[%clk 0:01:17.2]} 28... h6 {[%clk 0:00:49.4]} 29. Nf3 {[%clk 0:01:14.9]} 29...
g5 {[%clk 0:00:48.5]} 30. Qg3 {[%clk 0:01:13.2]} 30... Bc8 {[%clk 0:00:48.8]}
31. Bf1 {[%clk 0:01:11.2]} 31... Bd7 {[%clk 0:00:43.8]} 32. Nd2 {[%clk
0:01:10.6]} 32... Ng6 {[%clk 0:00:42.1]} 33. Rf3 {[%clk 0:01:09.9]} 33... Rf4
{[%clk 0:00:41.4]} 34. Bd3 {[%clk 0:01:04.3]} 34... Ref8 {[%clk 0:00:41.2]} 35.
Rexf4 {[%clk 0:01:02.8]} 35... exf4 {[%clk 0:00:39.7]} 36. Qh3 {[%clk
0:00:55.5]} 36... Ne5 {[%clk 0:00:38.1]} 37. Bf5 {[%clk 0:00:52.9]} 37... Bxf5
{[%clk 0:00:37.7]} 38. gxf5 {[%clk 0:00:53.1]} 38... g4 {[%clk 0:00:38.2]} 0-1

[Event "Early-Titled-Tuesday-Blitz-July-09-2024"]
[Site "Chess.com"]
[Date "2024.07.09"]
[Round "4"]
[White "Noki102"]
[Black "stollenmonster"]
[Result "1-0"]
[WhiteElo "2536"]
[BlackElo "2868"]
[TimeControl "180+1"]
[EndTime "8:38:42 PDT"]
[Termination "Noki102 won by resignation"]

1. Nc3 {[%clk 0:03:00.9]} 1... c5 {[%clk 0:02:59.8]} 2. e4 {[%clk 0:02:58.1]}
2... Nc6 {[%clk 0:02:59.6]} 3. Bc4 {[%clk 0:02:57.1]} 3... g6 {[%clk 0:02:55.4]}
4. d3 {[%clk 0:02:56.8]} 4... Bg7 {[%clk 0:02:56]} 5. Nge2 {[%clk 0:02:55.1]}
5... e6 {[%clk 0:02:56.5]} 6. O-O {[%clk 0:02:51.9]} 6... Nge7 {[%clk 0:02:57]}
7. Bf4 {[%clk 0:02:50.4]} 7... d5 {[%clk 0:02:56.2]} 8. Bb5 {[%clk 0:02:48.1]}
8... O-O {[%clk 0:02:56.6]} 9. Qe1 {[%clk 0:02:38]} 9... Nd4 {[%clk 0:02:55]}
10. Nxd4 {[%clk 0:02:33]} 10... cxd4 {[%clk 0:02:55.9]} 11. Nd1 {[%clk
0:02:28.4]} 11... Qb6 {[%clk 0:02:54.1]} 12. Ba4 {[%clk 0:02:22.1]} 12... e5
{[%clk 0:02:54.6]} 13. Bg5 {[%clk 0:02:19.2]} 13... f6 {[%clk 0:02:55.1]} 14.
Bd2 {[%clk 0:02:18.4]} 14... Be6 {[%clk 0:02:52.3]} 15. Bb4 {[%clk 0:02:09.8]}
15... Rf7 {[%clk 0:02:51.7]} 16. Bb3 {[%clk 0:01:50.3]} 16... dxe4 {[%clk
0:02:37.5]} 17. dxe4 {[%clk 0:01:40.4]} 17... a5 {[%clk 0:02:35.3]} 18. Bxa5
{[%clk 0:01:27.9]} 18... Qc6 {[%clk 0:02:32.9]} 19. Bxe6 {[%clk 0:01:16.3]}
19... Qxe6 {[%clk 0:02:33.8]} 20. Bd2 {[%clk 0:01:10.6]} 20... Rxa2 {[%clk
0:02:32.4]} 21. Rxa2 {[%clk 0:01:05.3]} 21... Qxa2 {[%clk 0:02:33.3]} 22. Qe2
{[%clk 0:01:04.4]} 22... f5 {[%clk 0:02:28.3]} 23. f3 {[%clk 0:00:57.9]} 23...
Nc6 {[%clk 0:02:23.7]} 24. Qd3 {[%clk 0:00:54.3]} 24... Bf8 {[%clk 0:02:19.3]}
25. b3 {[%clk 0:00:48]} 25... Bb4 {[%clk 0:02:16.6]} 26. Nf2 {[%clk 0:00:39.5]}
26... Qb2 {[%clk 0:01:55.8]} 27. Bxb4 {[%clk 0:00:20.8]} 27... Nxb4 {[%clk
0:01:56.7]} 28. Qc4 {[%clk 0:00:21.4]} 28... Nxc2 {[%clk 0:01:50]} 29. Nd3
{[%clk 0:00:21.6]} 29... Qc3 {[%clk 0:01:50.3]} 30. Nxe5 {[%clk 0:00:17.9]}
30... Qxc4 {[%clk 0:01:49.7]} 31. bxc4 {[%clk 0:00:15.9]} 31... Ne3 {[%clk
0:01:43.8]} 32. Nxf7 {[%clk 0:00:11.6]} 32... Nxf1 {[%clk 0:01:42.5]} 33. Kxf1
{[%clk 0:00:11.5]} 33... Kxf7 {[%clk 0:01:42.6]} 34. exf5 {[%clk 0:00:11.9]}
34... gxf5 {[%clk 0:01:43.5]} 35. Ke2 {[%clk 0:00:12.2]} 35... Ke6 {[%clk
0:01:43.6]} 36. f4 {[%clk 0:00:10.8]} 36... Kd6 {[%clk 0:01:43]} 37. Kd3 {[%clk
0:00:09.6]} 37... Kc5 {[%clk 0:01:43.6]} 38. h3 {[%clk 0:00:03.5]} 38... h6
{[%clk 0:01:36.9]} 39. g4 {[%clk 0:00:01.8]} 39... fxg4 {[%clk 0:01:36.7]} 40.
hxg4 {[%clk 0:00:02.7]} 40... b6 {[%clk 0:01:36]} 41. f5 {[%clk 0:00:02.9]}
41... Kd6 {[%clk 0:01:35.4]} 42. Kxd4 {[%clk 0:00:03.3]} 42... Ke7 {[%clk
0:01:36.1]} 43. Ke5 {[%clk 0:00:03.7]} 43... Kf7 {[%clk 0:01:36.6]} 44. f6
{[%clk 0:00:03.9]} 44... Kg6 {[%clk 0:01:36.7]} 45. Ke6 {[%clk 0:00:04]} 45...
Kg5 {[%clk 0:01:37.4]} 46. f7 {[%clk 0:00:04.4]} 46... Kxg4 {[%clk 0:01:38.3]}
47. f8=Q {[%clk 0:00:04.9]} 47... h5 {[%clk 0:01:39.2]} 48. Qf5+ {[%clk
0:00:05]} 48... Kg3 {[%clk 0:01:39.4]} 49. Qxh5 {[%clk 0:00:04.9]} 1-0

[Event "Early-Titled-Tuesday-Blitz-July-09-2024"]
[Site "Chess.com"]
[Date "2024.07.09"]
[Round "4"]
[White "Matols"]
[Black "eltenedor"]
[Result "1-0"]
[WhiteElo "2351"]
[BlackElo "2144"]
[TimeControl "180+1"]
[EndTime "8:38:43 PDT"]
[Termination "Matols won by resignation"]

1. d4 {[%clk 0:03:00.9]} 1... b6 {[%clk 0:02:59.3]} 2. c4 {[%clk 0:02:59.7]}
2... Bb7 {[%clk 0:02:59]} 3. Nc3 {[%clk 0:02:59.7]} 3... e6 {[%clk 0:02:56.7]}
4. a3 {[%clk 0:02:59.6]} 4... g6 {[%clk 0:02:54.1]} 5. Nf3 {[%clk 0:02:59.2]}
5... Bg7 {[%clk 0:02:53.9]} 6. g3 {[%clk 0:02:59.7]} 6... d6 {[%clk 0:02:36.1]}
7. Bg2 {[%clk 0:02:58.7]} 7... Ne7 {[%clk 0:02:36]} 8. O-O {[%clk 0:02:58]} 8...
O-O {[%clk 0:02:35.6]} 9. Bg5 {[%clk 0:02:51.9]} 9... h6 {[%clk 0:02:34.4]} 10.
Bf4 {[%clk 0:02:45.3]} 10... Nd7 {[%clk 0:01:55.6]} 11. Qd2 {[%clk 0:02:42.9]}
11... Kh7 {[%clk 0:01:54.3]} 12. e4 {[%clk 0:02:41.1]} 12... e5 {[%clk
0:01:43.2]} 13. Be3 {[%clk 0:02:40.4]} 13... Nf6 {[%clk 0:01:36.8]} 14. d5
{[%clk 0:02:35.1]} 14... Ng4 {[%clk 0:01:34.3]} 15. b4 {[%clk 0:02:25.3]} 15...
f5 {[%clk 0:01:24.4]} 16. Rac1 {[%clk 0:02:10.6]} 16... f4 {[%clk 0:01:14.4]}
17. gxf4 {[%clk 0:02:10]} 17... Nxe3 {[%clk 0:01:12.3]} 18. fxe3 {[%clk
0:02:08.6]} 18... Ng8 {[%clk 0:00:57.1]} 19. c5 {[%clk 0:02:01.6]} 19... bxc5
{[%clk 0:00:51.2]} 20. bxc5 {[%clk 0:02:00.8]} 20... Ba6 {[%clk 0:00:47.2]} 21.
Rf2 {[%clk 0:01:59.3]} 21... dxc5 {[%clk 0:00:34.8]} 22. Nxe5 {[%clk 0:01:50.8]}
22... Bxe5 {[%clk 0:00:33.3]} 23. fxe5 {[%clk 0:01:51.7]} 23... Rxf2 {[%clk
0:00:30.9]} 24. Qxf2 {[%clk 0:01:52.6]} 24... Qe7 {[%clk 0:00:27.3]} 25. d6
{[%clk 0:01:42.9]} 25... Qxe5 {[%clk 0:00:23]} 26. Qf7+ {[%clk 0:01:39.2]} 26...
Qg7 {[%clk 0:00:20.2]} 27. Qxg7+ {[%clk 0:01:38.3]} 27... Kxg7 {[%clk
0:00:21.1]} 28. dxc7 {[%clk 0:01:37.4]} 28... Rc8 {[%clk 0:00:15.6]} 29. Nd5
{[%clk 0:01:37.2]} 29... c4 {[%clk 0:00:15.1]} 30. Bh3 {[%clk 0:01:34.5]} 30...
Re8 {[%clk 0:00:12.1]} 31. Rb1 {[%clk 0:01:24.8]} 31... c3 {[%clk 0:00:03.9]}
32. Nxc3 {[%clk 0:01:24.1]} 32... Bc8 {[%clk 0:00:01.8]} 33. Bxc8 {[%clk
0:01:21]} 33... Rxc8 {[%clk 0:00:01.8]} 34. Nd5 {[%clk 0:01:21.5]} 34... Ne7
{[%clk 0:00:02.7]} 35. Nxe7 {[%clk 0:01:21.1]} 35... Rxc7 {[%clk 0:00:03.1]} 36.
Nd5 {[%clk 0:01:21]} 36... Rc2 {[%clk 0:00:03.1]} 37. Rb7+ {[%clk 0:01:20.5]}
1-0